[Event "Early-Titled-Tuesday-Blitz-May-07-2024"]
[Site "Chess.com"]
[Date "2024.05.07"]
[Round "8"]
[White "vladgoncharov"]
[Black "Naruto75_3"]
[Result "1-0"]
[WhiteElo "2583"]
[BlackElo "2413"]
[TimeControl "180+1"]
[EndTime "9:34:39 PDT"]
[Termination "vladgoncharov won on time"]

1. d4 {[%clk 0:03:00.9]} 1... d5 {[%clk 0:02:58]} 2. c4 {[%clk 0:03:00.9]} 2...
c6 {[%clk 0:02:57.4]} 3. Nf3 {[%clk 0:03:00.2]} 3... Nf6 {[%clk 0:02:57.4]} 4.
e3 {[%clk 0:03:00.5]} 4... e6 {[%clk 0:02:57.6]} 5. Nc3 {[%clk 0:03:00.4]} 5...
Nbd7 {[%clk 0:02:56.9]} 6. Bd3 {[%clk 0:03:00.6]} 6... dxc4 {[%clk 0:02:55.8]}
7. Bxc4 {[%clk 0:03:00.9]} 7... b5 {[%clk 0:02:56.4]} 8. Bd3 {[%clk 0:03:01]}
8... Bb7 {[%clk 0:02:56.9]} 9. a4 {[%clk 0:03:00]} 9... b4 {[%clk 0:02:56.5]}
10. Nb1 {[%clk 0:03:00.1]} 10... Bd6 {[%clk 0:02:54.7]} 11. O-O {[%clk
0:02:59.5]} 11... O-O {[%clk 0:02:54.7]} 12. a5 {[%clk 0:02:58]} 12... c5 {[%clk
0:02:54.4]} 13. Nbd2 {[%clk 0:02:57.8]} 13... cxd4 {[%clk 0:02:53.5]} 14. exd4
{[%clk 0:02:57.7]} 14... a6 {[%clk 0:02:53.5]} 15. Nc4 {[%clk 0:02:56.5]} 15...
Bc7 {[%clk 0:02:52.9]} 16. Qe2 {[%clk 0:02:56.1]} 16... h6 {[%clk 0:02:50.2]}
17. Rd1 {[%clk 0:02:55.4]} 17... Re8 {[%clk 0:02:46.2]} 18. Nfe5 {[%clk
0:02:50.3]} 18... Qe7 {[%clk 0:02:38.1]} 19. Bf4 {[%clk 0:02:47]} 19... Nxe5
{[%clk 0:02:31.1]} 20. dxe5 {[%clk 0:02:42.1]} 20... Nd5 {[%clk 0:02:26.1]} 21.
Bg3 {[%clk 0:02:41.7]} 21... Rad8 {[%clk 0:02:21.9]} 22. Qe4 {[%clk 0:02:19.5]}
22... g6 {[%clk 0:02:17.1]} 23. Bh4 {[%clk 0:02:12.6]} 23... Qf8 {[%clk
0:01:50.4]} 24. Bxd8 {[%clk 0:02:11.4]} 24... Rxd8 {[%clk 0:01:51.3]} 25. Qf3
{[%clk 0:02:02.9]} 25... Qg7 {[%clk 0:01:44]} 26. Re1 {[%clk 0:01:58.4]} 26...
Bc6 {[%clk 0:01:33.8]} 27. Rad1 {[%clk 0:01:50.3]} 27... Bb5 {[%clk 0:01:30.6]}
28. Nb6 {[%clk 0:01:41.4]} 28... Bc6 {[%clk 0:01:04.5]} 29. Bxa6 {[%clk
0:01:29.9]} 29... Bxe5 {[%clk 0:01:02.7]} 30. Bc4 {[%clk 0:01:23.3]} 30... Bxb2
{[%clk 0:00:56.2]} 31. Nxd5 {[%clk 0:01:21.6]} 31... exd5 {[%clk 0:00:57.1]} 32.
Bxd5 {[%clk 0:01:21.7]} 32... Bxd5 {[%clk 0:00:49.5]} 33. Rxd5 {[%clk 0:01:21]}
33... Rf8 {[%clk 0:00:46.8]} 34. g4 {[%clk 0:01:07]} 34... Bc3 {[%clk
0:00:38.5]} 35. Re7 {[%clk 0:00:59.5]} 35... b3 {[%clk 0:00:36.2]} 36. Rb7
{[%clk 0:00:58]} 36... b2 {[%clk 0:00:35.3]} 37. Kg2 {[%clk 0:00:57.2]} 37...
Bf6 {[%clk 0:00:21.5]} 38. a6 {[%clk 0:00:56.1]} 38... Bd4 {[%clk 0:00:19.1]}
39. Qe4 {[%clk 0:00:50.6]} 39... Bxf2 {[%clk 0:00:09.1]} 40. Kxf2 {[%clk
0:00:49]} 40... Qf6+ {[%clk 0:00:09.5]} 41. Qf3 {[%clk 0:00:48.6]} 41... Qh4+
{[%clk 0:00:06.5]} 42. Kg2 {[%clk 0:00:47]} 42... h5 {[%clk 0:00:03.1]} 43. gxh5
{[%clk 0:00:41.5]} 43... Qa4 {[%clk 0:00:01.5]} 44. Rxb2 {[%clk 0:00:40]} 44...
Qxa6 {[%clk 0:00:00.5]} 45. Rf2 {[%clk 0:00:38.4]} 1-0

[Event "Early-Titled-Tuesday-Blitz-May-07-2024"]
[Site "Chess.com"]
[Date "2024.05.07"]
[Round "8"]
[White "Chessbard1972"]
[Black "shirovin"]
[Result "1-0"]
[WhiteElo "2331"]
[BlackElo "2085"]
[TimeControl "180+1"]
[EndTime "9:34:40 PDT"]
[Termination "Chessbard1972 won by checkmate"]

1. e4 {[%clk 0:03:00.9]} 1... Nf6 {[%clk 0:02:59.4]} 2. e5 {[%clk 0:02:58.6]}
2... Nd5 {[%clk 0:02:58.7]} 3. d4 {[%clk 0:02:59]} 3... d6 {[%clk 0:02:59]} 4.
Nf3 {[%clk 0:02:59.2]} 4... dxe5 {[%clk 0:02:58.8]} 5. Nxe5 {[%clk 0:02:58.4]}
5... c6 {[%clk 0:02:58.7]} 6. Bc4 {[%clk 0:02:57.6]} 6... Bf5 {[%clk 0:02:50.7]}
7. O-O {[%clk 0:02:55.3]} 7... e6 {[%clk 0:02:50.1]} 8. c3 {[%clk 0:02:54.2]}
8... Nd7 {[%clk 0:02:46.9]} 9. Re1 {[%clk 0:02:53.1]} 9... Nxe5 {[%clk
0:02:46.2]} 10. Rxe5 {[%clk 0:02:51.8]} 10... Bd6 {[%clk 0:02:43.3]} 11. Re1
{[%clk 0:02:51.3]} 11... Qc7 {[%clk 0:02:42.1]} 12. h3 {[%clk 0:02:50.6]} 12...
O-O-O {[%clk 0:02:35.5]} 13. Nd2 {[%clk 0:02:43.9]} 13... g5 {[%clk 0:02:31.1]}
14. Ne4 {[%clk 0:02:41.4]} 14... Bf4 {[%clk 0:02:26.7]} 15. Qf3 {[%clk
0:02:33.7]} 15... h5 {[%clk 0:02:19.6]} 16. Nxg5 {[%clk 0:02:29.6]} 16... Bxc1
{[%clk 0:01:58.7]} 17. Raxc1 {[%clk 0:02:27.2]} 17... Rdg8 {[%clk 0:01:57.4]}
18. Ne4 {[%clk 0:02:21.3]} 18... Rg6 {[%clk 0:01:50.8]} 19. Ng3 {[%clk
0:02:18.7]} 19... Bxh3 {[%clk 0:01:44.2]} 20. Bxd5 {[%clk 0:02:09.3]} 20... Bg4
{[%clk 0:01:27.3]} 21. Bxe6+ {[%clk 0:02:01.4]} 21... fxe6 {[%clk 0:01:24.9]}
22. Qe4 {[%clk 0:01:56.1]} 22... Rhg8 {[%clk 0:01:21.8]} 23. Re3 {[%clk
0:01:46]} 23... h4 {[%clk 0:01:20.7]} 24. Nf1 {[%clk 0:01:45.1]} 24... Bf5
{[%clk 0:01:20.2]} 25. Qf3 {[%clk 0:01:40]} 25... Bg4 {[%clk 0:01:08.4]} 26. Qe4
{[%clk 0:01:33]} 26... Bf5 {[%clk 0:00:55.9]} 27. Qf3 {[%clk 0:01:32.9]} 27...
Rg4 {[%clk 0:00:52.8]} 28. Nh2 {[%clk 0:01:25]} 28... R4g6 {[%clk 0:00:45.2]}
29. Rce1 {[%clk 0:01:20.5]} 29... h3 {[%clk 0:00:30.3]} 30. g3 {[%clk
0:01:19.5]} 30... Qg7 {[%clk 0:00:27.6]} 31. Qf4 {[%clk 0:01:14.9]} 31... Rf8
{[%clk 0:00:22.8]} 32. Qe5 {[%clk 0:01:13.6]} 32... Qg8 {[%clk 0:00:20.8]} 33.
c4 {[%clk 0:01:09.9]} 33... Rg5 {[%clk 0:00:20.3]} 34. Qd6 {[%clk 0:01:08.2]}
34... Rd8 {[%clk 0:00:16.8]} 35. Qf4 {[%clk 0:01:06.6]} 35... b6 {[%clk
0:00:13.9]} 36. b4 {[%clk 0:01:01.9]} 36... Kb7 {[%clk 0:00:12.8]} 37. b5 {[%clk
0:01:01.4]} 37... Qg7 {[%clk 0:00:10.2]} 38. Qf3 {[%clk 0:01:00.2]} 38... Qc7
{[%clk 0:00:08.6]} 39. Rxe6 {[%clk 0:00:54.8]} 39... Bxe6 {[%clk 0:00:07.7]} 40.
Rxe6 {[%clk 0:00:55.1]} 40... Kb8 {[%clk 0:00:05.2]} 41. Rxc6 {[%clk 0:00:53.9]}
41... Qd7 {[%clk 0:00:05.1]} 42. Qf4+ {[%clk 0:00:53.1]} 42... Ka8 {[%clk
0:00:04.4]} 43. Qxg5 {[%clk 0:00:52.7]} 43... Qxd4 {[%clk 0:00:03.8]} 44. Qf6
{[%clk 0:00:29.8]} 44... Qd1+ {[%clk 0:00:04.7]} 45. Nf1 {[%clk 0:00:29.6]}
45... h2+ {[%clk 0:00:04.4]} 46. Kxh2 {[%clk 0:00:29.9]} 46... Qxf1 {[%clk
0:00:03.4]} 47. Qxd8+ {[%clk 0:00:29.2]} 47... Kb7 {[%clk 0:00:01.9]} 48. Qc8#
{[%clk 0:00:29.8]} 1-0

[Event "Early-Titled-Tuesday-Blitz-May-07-2024"]
[Site "Chess.com"]
[Date "2024.05.07"]
[Round "8"]
[White "GeorgiosSouleidis"]
[Black "PeshkaCh"]
[Result "0-1"]
[WhiteElo "2709"]
[BlackElo "2885"]
[TimeControl "180+1"]
[EndTime "9:34:41 PDT"]
[Termination "PeshkaCh won by resignation"]

1. e4 {[%clk 0:03:00.9]} 1... e5 {[%clk 0:02:59.6]} 2. Nc3 {[%clk 0:03:00.8]}
2... Nf6 {[%clk 0:02:58.1]} 3. d4 {[%clk 0:03:00.7]} 3... exd4 {[%clk
0:02:57.9]} 4. Qxd4 {[%clk 0:03:01.6]} 4... Nc6 {[%clk 0:02:58.4]} 5. Qd3 {[%clk
0:03:02.1]} 5... Bb4 {[%clk 0:02:55.8]} 6. Bd2 {[%clk 0:03:02.3]} 6... d6 {[%clk
0:02:55.3]} 7. O-O-O {[%clk 0:03:02.4]} 7... Be6 {[%clk 0:02:50.8]} 8. Kb1
{[%clk 0:02:59]} 8... Ne5 {[%clk 0:02:45.5]} 9. Qg3 {[%clk 0:02:24.9]} 9... Bxc3
{[%clk 0:02:31.6]} 10. Bxc3 {[%clk 0:02:25.1]} 10... Nxe4 {[%clk 0:02:31.8]} 11.
Qxg7 {[%clk 0:02:25.4]} 11... Nxc3+ {[%clk 0:02:32.4]} 12. bxc3 {[%clk 0:02:26]}
12... Rf8 {[%clk 0:01:23.3]} 13. f4 {[%clk 0:02:24.1]} 13... Ng6 {[%clk
0:01:13.2]} 14. Nf3 {[%clk 0:00:54.5]} 14... Qd7 {[%clk 0:01:03.4]} 15. Qf6
{[%clk 0:00:42.7]} 15... Ne7 {[%clk 0:00:55.1]} 16. Ng5 {[%clk 0:00:16.9]} 16...
O-O-O {[%clk 0:00:52]} 17. Nxh7 {[%clk 0:00:15.4]} 17... Rg8 {[%clk 0:00:39.3]}
18. Ng5 {[%clk 0:00:14.9]} 18... Nf5 {[%clk 0:00:37.3]} 19. Bd3 {[%clk
0:00:11.2]} 19... Rg6 {[%clk 0:00:33.6]} 20. Nxe6 {[%clk 0:00:09.6]} 20... Rxf6
{[%clk 0:00:31.7]} 21. Nxd8 {[%clk 0:00:10.1]} 21... Kxd8 {[%clk 0:00:31.8]} 22.
Rde1 {[%clk 0:00:08]} 22... d5 {[%clk 0:00:30.9]} 23. g4 {[%clk 0:00:08.2]}
23... Nd6 {[%clk 0:00:23.2]} 24. f5 {[%clk 0:00:08.7]} 24... Nc4 {[%clk
0:00:21.7]} 25. Bxc4 {[%clk 0:00:07.2]} 25... dxc4 {[%clk 0:00:22.6]} 26. Rd1
{[%clk 0:00:06.9]} 26... Rd6 {[%clk 0:00:23.2]} 27. Kc1 {[%clk 0:00:07.4]} 27...
Qe7 {[%clk 0:00:21.1]} 28. Rxd6+ {[%clk 0:00:07.6]} 28... cxd6 {[%clk
0:00:21.5]} 29. Kb2 {[%clk 0:00:05.5]} 29... Qe4 {[%clk 0:00:21.7]} 30. Rg1
{[%clk 0:00:04.7]} 30... Qe3 {[%clk 0:00:20.6]} 31. Rg2 {[%clk 0:00:04]} 31...
Qf3 {[%clk 0:00:21]} 32. Rg1 {[%clk 0:00:04]} 32... Qf2 {[%clk 0:00:21.5]} 33.
Rd1 {[%clk 0:00:03.9]} 33... Qxh2 {[%clk 0:00:21.9]} 34. Rd4 {[%clk 0:00:04.2]}
34... b5 {[%clk 0:00:22.3]} 35. a4 {[%clk 0:00:04.2]} 35... a6 {[%clk
0:00:21.1]} 36. axb5 {[%clk 0:00:04.7]} 36... axb5 {[%clk 0:00:22]} 37. Rd5
{[%clk 0:00:03.6]} 37... Qf4 {[%clk 0:00:19.5]} 38. Rd4 {[%clk 0:00:03.5]} 38...
Qe5 {[%clk 0:00:19.9]} 39. Ka3 {[%clk 0:00:03.6]} 39... Kc7 {[%clk 0:00:19.3]}
40. Kb2 {[%clk 0:00:02.3]} 40... Kb6 {[%clk 0:00:18.6]} 41. Rd2 {[%clk
0:00:02.7]} 41... b4 {[%clk 0:00:18.6]} 0-1

[Event "Early-Titled-Tuesday-Blitz-May-07-2024"]
[Site "Chess.com"]
[Date "2024.05.07"]
[Round "8"]
[White "GoltsevDmitry2000"]
[Black "MVM2008"]
[Result "0-1"]
[WhiteElo "2757"]
[BlackElo "2573"]
[TimeControl "180+1"]
[EndTime "9:34:42 PDT"]
[Termination "MVM2008 won by checkmate"]

1. e4 {[%clk 0:02:59.8]} 1... c6 {[%clk 0:02:58.8]} 2. e5 {[%clk 0:03:00]} 2...
d6 {[%clk 0:02:49.4]} 3. exd6 {[%clk 0:03:00.9]} 3... exd6 {[%clk 0:02:49.6]} 4.
d4 {[%clk 0:03:01.4]} 4... d5 {[%clk 0:02:49.5]} 5. Nf3 {[%clk 0:03:01.2]} 5...
Nf6 {[%clk 0:02:50]} 6. Bd3 {[%clk 0:03:00.4]} 6... Bd6 {[%clk 0:02:49.9]} 7.
O-O {[%clk 0:02:59.9]} 7... Ne4 {[%clk 0:02:48]} 8. c4 {[%clk 0:02:58.1]} 8...
O-O {[%clk 0:02:47.6]} 9. Nc3 {[%clk 0:02:42]} 9... Nxc3 {[%clk 0:02:40.3]} 10.
bxc3 {[%clk 0:02:42.9]} 10... dxc4 {[%clk 0:02:40.4]} 11. Bxc4 {[%clk
0:02:42.5]} 11... Bf5 {[%clk 0:02:35.5]} 12. Ng5 {[%clk 0:02:38.6]} 12... h6
{[%clk 0:02:23.6]} 13. Nxf7 {[%clk 0:02:29.9]} 13... Rxf7 {[%clk 0:02:24.5]} 14.
Qh5 {[%clk 0:02:28]} 14... Qf6 {[%clk 0:02:17.6]} 15. Re1 {[%clk 0:02:17.9]}
15... Be6 {[%clk 0:02:00.3]} 16. Bg5 {[%clk 0:01:28.4]} 16... Qxf2+ {[%clk
0:01:49.5]} 17. Kh1 {[%clk 0:01:26.6]} 17... Bxc4 {[%clk 0:01:41.9]} 18. Bh4
{[%clk 0:01:04.4]} 18... Qf5 {[%clk 0:01:32.6]} 19. Qd1 {[%clk 0:00:53.9]} 19...
Nd7 {[%clk 0:01:24.8]} 20. Rb1 {[%clk 0:00:43.1]} 20... Raf8 {[%clk 0:01:20.5]}
21. Kg1 {[%clk 0:00:29]} 21... Qf1+ {[%clk 0:01:18.1]} 22. Rxf1 {[%clk
0:00:28.5]} 22... Rxf1+ {[%clk 0:01:19]} 23. Qxf1 {[%clk 0:00:28.9]} 23... Rxf1+
{[%clk 0:01:07.5]} 24. Rxf1 {[%clk 0:00:28.9]} 24... Bxh2+ {[%clk 0:01:04.5]}
25. Kf2 {[%clk 0:00:25.9]} 25... Bxf1 {[%clk 0:01:04.3]} 26. Kxf1 {[%clk
0:00:26.8]} 26... Bd6 {[%clk 0:01:02.5]} 27. Ke2 {[%clk 0:00:24.5]} 27... Kf7
{[%clk 0:01:01.8]} 28. Kd3 {[%clk 0:00:14.2]} 28... Ke6 {[%clk 0:01:01.1]} 29.
c4 {[%clk 0:00:13.5]} 29... c5 {[%clk 0:01:00.1]} 30. d5+ {[%clk 0:00:13.4]}
30... Kf5 {[%clk 0:01:00]} 31. Be1 {[%clk 0:00:12.3]} 31... g5 {[%clk
0:00:59.3]} 32. Bc3 {[%clk 0:00:12.4]} 32... Ne5+ {[%clk 0:00:58.9]} 33. Kc2
{[%clk 0:00:12]} 33... Nxc4 {[%clk 0:00:59.1]} 34. Bg7 {[%clk 0:00:12]} 34...
Ne3+ {[%clk 0:00:58.4]} 35. Kb3 {[%clk 0:00:12.9]} 35... Kg6 {[%clk 0:00:57.3]}
36. Bc3 {[%clk 0:00:12.1]} 36... Nxd5 {[%clk 0:00:57.4]} 37. Bd2 {[%clk
0:00:11.9]} 37... Kf5 {[%clk 0:00:57.4]} 38. a3 {[%clk 0:00:11.2]} 38... b5
{[%clk 0:00:57]} 39. a4 {[%clk 0:00:11.2]} 39... a6 {[%clk 0:00:57.2]} 40. a5
{[%clk 0:00:10.4]} 40... c4+ {[%clk 0:00:57.4]} 41. Kc2 {[%clk 0:00:10.7]} 41...
h5 {[%clk 0:00:58]} 42. Bc1 {[%clk 0:00:10.9]} 42... h4 {[%clk 0:00:58.2]} 43.
Bb2 {[%clk 0:00:10.6]} 43... Bc7 {[%clk 0:00:58.1]} 44. Bd4 {[%clk 0:00:10.4]}
44... Bxa5 {[%clk 0:00:58.1]} 45. Bc5 {[%clk 0:00:10.3]} 45... g4 {[%clk
0:00:58.1]} 46. Bd4 {[%clk 0:00:09.3]} 46... Bb6 {[%clk 0:00:58.1]} 47. Bb2
{[%clk 0:00:09.2]} 47... a5 {[%clk 0:00:58.4]} 48. Bc1 {[%clk 0:00:07.9]} 48...
b4 {[%clk 0:00:58.4]} 49. Bd2 {[%clk 0:00:05.8]} 49... a4 {[%clk 0:00:58.2]} 50.
g3 {[%clk 0:00:05]} 50... hxg3 {[%clk 0:00:57.3]} 51. Kd1 {[%clk 0:00:05.4]}
51... g2 {[%clk 0:00:57.2]} 52. Ke2 {[%clk 0:00:06.3]} 52... g1=Q {[%clk
0:00:56.7]} 53. Bc1 {[%clk 0:00:05.1]} 53... Nc3+ {[%clk 0:00:54.6]} 54. Kd2
{[%clk 0:00:03.4]} 54... Be3+ {[%clk 0:00:52.9]} 55. Kc2 {[%clk 0:00:02.7]}
55... Qxc1# {[%clk 0:00:53.3]} 0-1

[Event "Early-Titled-Tuesday-Blitz-May-07-2024"]
[Site "Chess.com"]
[Date "2024.05.07"]
[Round "8"]
[White "Chessdude1987"]
[Black "ChelsieMonica"]
[Result "0-1"]
[WhiteElo "2372"]
[BlackElo "2529"]
[TimeControl "180+1"]
[EndTime "9:34:42 PDT"]
[Termination "ChelsieMonica won on time"]

1. e4 {[%clk 0:03:00.9]} 1... e5 {[%clk 0:02:59.2]} 2. Nf3 {[%clk 0:03:00.9]}
2... Nc6 {[%clk 0:02:58.7]} 3. d4 {[%clk 0:03:00.8]} 3... exd4 {[%clk
0:02:58.5]} 4. Nxd4 {[%clk 0:03:01.7]} 4... Bc5 {[%clk 0:02:57.9]} 5. Nxc6
{[%clk 0:03:01.2]} 5... Qf6 {[%clk 0:02:57.3]} 6. Qd2 {[%clk 0:03:01.9]} 6...
dxc6 {[%clk 0:02:57]} 7. Nc3 {[%clk 0:03:02.6]} 7... Bb4 {[%clk 0:02:54]} 8. Bd3
{[%clk 0:03:01.6]} 8... Bxc3 {[%clk 0:02:54.3]} 9. bxc3 {[%clk 0:03:01.1]} 9...
Ne7 {[%clk 0:02:54.7]} 10. O-O {[%clk 0:02:58.9]} 10... O-O {[%clk 0:02:54.1]}
11. f4 {[%clk 0:02:57.8]} 11... c5 {[%clk 0:02:51.8]} 12. Rb1 {[%clk 0:02:42.3]}
12... Qc6 {[%clk 0:02:45.5]} 13. Qe2 {[%clk 0:02:32.2]} 13... a6 {[%clk
0:02:40.6]} 14. c4 {[%clk 0:02:25.8]} 14... f5 {[%clk 0:02:36.3]} 15. Bb2 {[%clk
0:02:20.8]} 15... Ng6 {[%clk 0:02:14.6]} 16. Rf3 {[%clk 0:02:16.8]} 16... Bd7
{[%clk 0:02:11.9]} 17. Rg3 {[%clk 0:02:10.2]} 17... Rae8 {[%clk 0:02:07.3]} 18.
Re1 {[%clk 0:02:09.7]} 18... Rf7 {[%clk 0:02:05.7]} 19. Qf3 {[%clk 0:01:22.3]}
19... Qb6 {[%clk 0:01:57.9]} 20. Bc3 {[%clk 0:01:14.6]} 20... Bc6 {[%clk
0:01:58.3]} 21. Qh5 {[%clk 0:01:08.8]} 21... Bxe4 {[%clk 0:01:27]} 22. Bxe4
{[%clk 0:00:43]} 22... Rxe4 {[%clk 0:01:26.2]} 23. Rd1 {[%clk 0:00:37.6]} 23...
Rf8 {[%clk 0:01:10.4]} 24. Qg5 {[%clk 0:00:36.3]} 24... Qe6 {[%clk 0:01:07.6]}
25. h4 {[%clk 0:00:33.4]} 25... Re3 {[%clk 0:00:44.4]} 26. h5 {[%clk 0:00:27.1]}
26... Rxg3 {[%clk 0:00:30.9]} 27. Qxg3 {[%clk 0:00:25.7]} 27... Qe2 {[%clk
0:00:20.1]} 28. Re1 {[%clk 0:00:23.1]} 28... Qxh5 {[%clk 0:00:19.5]} 29. Qe3
{[%clk 0:00:16.2]} 29... Rf7 {[%clk 0:00:19]} 30. Qe8+ {[%clk 0:00:15.8]} 30...
Nf8 {[%clk 0:00:19.4]} 31. Qe5 {[%clk 0:00:11.7]} 31... h6 {[%clk 0:00:17.8]}
32. Re3 {[%clk 0:00:07.5]} 32... Kh7 {[%clk 0:00:17.8]} 33. Rg3 {[%clk
0:00:07.2]} 33... Ng6 {[%clk 0:00:17.4]} 34. Qe6 {[%clk 0:00:04.7]} 34... Nxf4
{[%clk 0:00:16.7]} 35. Qe5 {[%clk 0:00:01.3]} 35... Ne2+ {[%clk 0:00:16.5]} 36.
Kf2 {[%clk 0:00:00.3]} 36... Nxg3 {[%clk 0:00:16.2]} 37. Qxg3 {[%clk 0:00:00.8]}
37... Qg6 {[%clk 0:00:15.6]} 38. Qe5 {[%clk 0:00:00.6]} 38... f4 {[%clk
0:00:16]} 0-1

[Event "Early-Titled-Tuesday-Blitz-May-07-2024"]
[Site "Chess.com"]
[Date "2024.05.07"]
[Round "8"]
[White "OparinGrigoriy"]
[Black "Zhigalko_Sergei"]
[Result "1-0"]
[WhiteElo "2995"]
[BlackElo "2879"]
[TimeControl "180+1"]
[EndTime "9:34:45 PDT"]
[Termination "OparinGrigoriy won by checkmate"]

1. d4 {[%clk 0:03:00.9]} 1... Nf6 {[%clk 0:02:59.5]} 2. c4 {[%clk 0:03:01.5]}
2... e6 {[%clk 0:03:00]} 3. Nf3 {[%clk 0:03:02.3]} 3... b6 {[%clk 0:03:00.4]} 4.
g3 {[%clk 0:03:03]} 4... Ba6 {[%clk 0:03:00.7]} 5. Nbd2 {[%clk 0:03:03.3]} 5...
Bb4 {[%clk 0:02:52.2]} 6. Qb3 {[%clk 0:03:00.7]} 6... Bxd2+ {[%clk 0:02:51.5]}
7. Bxd2 {[%clk 0:03:00.8]} 7... O-O {[%clk 0:02:47.1]} 8. Bg2 {[%clk 0:03:01.1]}
8... Bb7 {[%clk 0:02:45]} 9. O-O {[%clk 0:03:01.1]} 9... d6 {[%clk 0:02:45.1]}
10. Rad1 {[%clk 0:02:59.3]} 10... Nbd7 {[%clk 0:02:44.9]} 11. Rfe1 {[%clk
0:02:58.9]} 11... h6 {[%clk 0:02:40.5]} 12. Qc2 {[%clk 0:02:50.7]} 12... Be4
{[%clk 0:02:39.6]} 13. Qc1 {[%clk 0:02:50.8]} 13... Re8 {[%clk 0:02:35.2]} 14.
Bc3 {[%clk 0:02:46.8]} 14... a6 {[%clk 0:01:54.4]} 15. Bh3 {[%clk 0:02:45.6]}
15... b5 {[%clk 0:01:54.1]} 16. Nd2 {[%clk 0:02:40.9]} 16... bxc4 {[%clk
0:01:33.1]} 17. Nxc4 {[%clk 0:02:41.8]} 17... Bd5 {[%clk 0:01:18.7]} 18. b3
{[%clk 0:02:42]} 18... Qb8 {[%clk 0:01:02.3]} 19. Na5 {[%clk 0:02:37.5]} 19...
Ne4 {[%clk 0:00:53.6]} 20. f3 {[%clk 0:02:36]} 20... Nxc3 {[%clk 0:00:48]} 21.
Qxc3 {[%clk 0:02:36.9]} 21... Qb6 {[%clk 0:00:34.1]} 22. e4 {[%clk 0:02:29.6]}
22... Bb7 {[%clk 0:00:34.2]} 23. Bf1 {[%clk 0:02:22.8]} 23... Rac8 {[%clk
0:00:28.8]} 24. Kg2 {[%clk 0:02:20.6]} 24... Ba8 {[%clk 0:00:28.7]} 25. Qd2
{[%clk 0:02:14.4]} 25... d5 {[%clk 0:00:26.6]} 26. exd5 {[%clk 0:01:59.7]} 26...
Bxd5 {[%clk 0:00:21.5]} 27. Nc4 {[%clk 0:01:59.9]} 27... Qb7 {[%clk 0:00:21.7]}
28. Qf2 {[%clk 0:01:57.8]} 28... Red8 {[%clk 0:00:19.6]} 29. Rc1 {[%clk
0:01:54.1]} 29... Nf6 {[%clk 0:00:14.4]} 30. Ne5 {[%clk 0:01:49.9]} 30... Nd7
{[%clk 0:00:12.8]} 31. Nd3 {[%clk 0:01:50]} 31... c6 {[%clk 0:00:09]} 32. Nc5
{[%clk 0:01:38.1]} 32... Nxc5 {[%clk 0:00:08.6]} 33. Rxc5 {[%clk 0:01:39]} 33...
Qb4 {[%clk 0:00:08.3]} 34. Qe3 {[%clk 0:01:22.7]} 34... Qa3 {[%clk 0:00:06.8]}
35. Re2 {[%clk 0:01:20.2]} 35... a5 {[%clk 0:00:06.3]} 36. Qc3 {[%clk 0:01:15]}
36... Ra8 {[%clk 0:00:06.4]} 37. Kf2 {[%clk 0:01:12.3]} 37... Qb4 {[%clk
0:00:06]} 38. Rc2 {[%clk 0:01:07]} 38... Qxc3 {[%clk 0:00:04.8]} 39. R5xc3
{[%clk 0:01:07.9]} 39... a4 {[%clk 0:00:04.8]} 40. b4 {[%clk 0:01:06]} 40... a3
{[%clk 0:00:04.6]} 41. Bc4 {[%clk 0:01:05.1]} 41... Rdb8 {[%clk 0:00:04.4]} 42.
Rb3 {[%clk 0:01:03.7]} 42... Ra4 {[%clk 0:00:04.2]} 43. Bxd5 {[%clk 0:00:57.9]}
43... cxd5 {[%clk 0:00:05.1]} 44. b5 {[%clk 0:00:56.7]} 44... Rxd4 {[%clk
0:00:06]} 45. Ke3 {[%clk 0:00:48.1]} 45... Ra4 {[%clk 0:00:05]} 46. b6 {[%clk
0:00:47.5]} 46... Kh7 {[%clk 0:00:03.7]} 47. b7 {[%clk 0:00:41.1]} 47... Ra7
{[%clk 0:00:02.6]} 48. Rc7 {[%clk 0:00:41.2]} 48... e5 {[%clk 0:00:02.8]} 49.
Rxf7 {[%clk 0:00:39.4]} 49... Kg6 {[%clk 0:00:03.3]} 50. Rd7 {[%clk 0:00:38.2]}
50... Kf6 {[%clk 0:00:03.8]} 51. Rb6+ {[%clk 0:00:38.4]} 51... Kf5 {[%clk
0:00:03.3]} 52. g4+ {[%clk 0:00:37.9]} 52... Kg5 {[%clk 0:00:03.4]} 53. Rxg7+
{[%clk 0:00:38.8]} 53... Kh4 {[%clk 0:00:03.7]} 54. Rxh6# {[%clk 0:00:39.5]} 1-0

[Event "Early-Titled-Tuesday-Blitz-May-07-2024"]
[Site "Chess.com"]
[Date "2024.05.07"]
[Round "8"]
[White "TrompeterImEther"]
[Black "chessdjw"]
[Result "0-1"]
[WhiteElo "2599"]
[BlackElo "2772"]
[TimeControl "180+1"]
[EndTime "9:34:45 PDT"]
[Termination "chessdjw won on time"]

1. e4 {[%clk 0:03:00.9]} 1... e5 {[%clk 0:02:59.5]} 2. Nf3 {[%clk 0:03:01.1]}
2... Nc6 {[%clk 0:02:59.4]} 3. Bb5 {[%clk 0:03:01.2]} 3... a6 {[%clk 0:02:55.5]}
4. Ba4 {[%clk 0:03:01.4]} 4... Nf6 {[%clk 0:02:55.7]} 5. O-O {[%clk 0:03:01.2]}
5... b5 {[%clk 0:02:56.1]} 6. Bb3 {[%clk 0:03:00.6]} 6... Bc5 {[%clk 0:02:56.8]}
7. a4 {[%clk 0:02:59.5]} 7... Rb8 {[%clk 0:02:55.7]} 8. axb5 {[%clk 0:02:59.6]}
8... axb5 {[%clk 0:02:56.6]} 9. Nxe5 {[%clk 0:03:00.2]} 9... Nxe5 {[%clk
0:02:55.5]} 10. d4 {[%clk 0:03:00.8]} 10... Bxd4 {[%clk 0:02:54.6]} 11. Qxd4
{[%clk 0:03:01.7]} 11... d6 {[%clk 0:02:55.2]} 12. f4 {[%clk 0:03:01.4]} 12...
Nc6 {[%clk 0:02:55.8]} 13. Qc3 {[%clk 0:03:00.2]} 13... Ne7 {[%clk 0:02:55.9]}
14. e5 {[%clk 0:02:52.2]} 14... Ne4 {[%clk 0:02:55.7]} 15. Qe1 {[%clk
0:02:42.9]} 15... Nc5 {[%clk 0:02:54]} 16. Ba2 {[%clk 0:02:08.1]} 16... O-O
{[%clk 0:02:52.7]} 17. b4 {[%clk 0:02:06.6]} 17... dxe5 {[%clk 0:02:41.7]} 18.
Be3 {[%clk 0:01:50.9]} 18... Na4 {[%clk 0:02:29.9]} 19. fxe5 {[%clk 0:01:49.9]}
19... Nd5 {[%clk 0:02:23.1]} 20. Bd4 {[%clk 0:00:52.8]} 20... Be6 {[%clk
0:02:20.4]} 21. c3 {[%clk 0:00:48.3]} 21... Qg5 {[%clk 0:01:48.6]} 22. Kh1
{[%clk 0:00:30.9]} 22... Rfd8 {[%clk 0:01:26.2]} 23. Nd2 {[%clk 0:00:23.9]}
23... Naxc3 {[%clk 0:01:08.9]} 24. Nf3 {[%clk 0:00:20.3]} 24... Qg4 {[%clk
0:00:34.6]} 25. Bxc3 {[%clk 0:00:19.1]} 25... Nf4 {[%clk 0:00:35.3]} 26. Qg3
{[%clk 0:00:15.5]} 26... Qxg3 {[%clk 0:00:32.2]} 27. hxg3 {[%clk 0:00:16.4]}
27... Ne2 {[%clk 0:00:32.8]} 28. Be1 {[%clk 0:00:15.2]} 28... Ra8 {[%clk
0:00:31.7]} 29. Bxe6 {[%clk 0:00:12.7]} 29... Rxa1 {[%clk 0:00:31]} 30. Bg4
{[%clk 0:00:04.3]} 30... Nxg3+ {[%clk 0:00:30.1]} 31. Bxg3 {[%clk 0:00:03.3]}
31... Rxf1+ {[%clk 0:00:29.4]} 32. Kh2 {[%clk 0:00:04.2]} 32... Rb1 {[%clk
0:00:29.4]} 33. e6 {[%clk 0:00:04.5]} 33... Rxb4 {[%clk 0:00:21.1]} 34. exf7+
{[%clk 0:00:03.1]} 34... Kxf7 {[%clk 0:00:19.5]} 35. Bxc7 {[%clk 0:00:03.8]}
35... Ra8 {[%clk 0:00:07.7]} 36. Bd7 {[%clk 0:00:03.6]} 36... Ra7 {[%clk
0:00:06]} 37. Bf4 {[%clk 0:00:01.9]} 37... Rxf4 {[%clk 0:00:04.1]} 38. Bxb5
{[%clk 0:00:00.7]} 38... Rxf3 {[%clk 0:00:04.7]} 0-1